[Event "Catalan Youth Championship 2024"]
[Site "Cambrils"]
[Date "2024.03.25"]
[Round "5.1"]
[White "Sergooris, Emma"]
[Black "Caballero Mogilnikov, Liam"]
[Result "0-1"]
[ECO "B25"]
[WhiteElo "1544"]
[BlackElo "1659"]
[Annotator "NA RC"]
[PlyCount "150"]
[EventDate "2024.03.13"]
[EventType "swiss"]
[EventCountry "ESP"]
[SourceTitle "playchess.com"]
[Source "ChessBase"]
[SourceQuality "1"]
[TimeControl "5400+30"]

1. e4 {[%emt 0:00:04]} c5 {[%emt 0:00:19]} 2. Nc3 {[%emt 0:00:08]} d6 {[%emt 0:00:28]} 3. Nge2 {[%emt 0:00:11]} Nf6 {[%emt 0:00:41]} 4. g3 {[%emt 0:00:29]} g6 {[%emt 0:00:29]} 5. Bg2 {[%emt 0:00:12]} Bg7 {[%emt 0:00:53]} 6. O-O {[%emt 0:00:27]} O-O {[%emt 0:01:05]} 7. h3 {[%emt 0:00:28]} Nc6 {[%emt 0:01:06]} 8. d3 {[%emt 0:00:36]} Bd7 {[%emt 0:01:27]} 9. Be3 {[%emt 0:01:19]} a6 {[%emt 0:02:49]} 10. Qd2 {[%emt 0:03:30]} b5 {[%emt 0:02:43]} 11. a3 {[%emt 0:03:47]} e6 {[%emt 0:06:07]} 12. Rab1 {[%emt 0:04:46]} Rc8 {[%emt 0:07:47]} 13. b4 {[%emt 0:04:27]} Ne7 {[%emt 0:07:20]} 14. bxc5 {[%emt 0:03:07]} dxc5 {[%emt 0:00:38]} 15. Rfd1 {[%emt 0:04:54]} Bc6 {[%emt 0:14:57]} 16. Bxc5 {[%emt 0:07:14]} Ba8 {[%emt 0:01:49]} 17. Qe3 {[%emt 0:03:59]} Nd7 {[%emt 0:01:37]} 18. Bxe7 {[%emt 0:08:22]} Qxe7 {[%emt 0:00:38]} 19. Qd2 {[%emt 0:01:11]} Qxa3 {[%emt 0:01:52]} 20. Rb3 {[%emt 0:00:24]} Qe7 {[%emt 0:01:27]} 21. Rc1 {[%emt 0:04:59]} Nc5 {[%emt 0:03:13]} 22. Rbb1 {[%emt 0:01:19]} Rfd8 {[%emt 0:00:54]} 23. Qe3 {[%emt 0:01:41]} Nd7 {[%emt 0:03:13]} 24. Rb3 {[%emt 0:01:06]} Rc7 {[%emt 0:04:05]} 25. Qd2 {[%emt 0:02:09]} Rdc8 {[%emt 0:00:32]} 26. Na2 {[%emt 0:01:39]} Nc5 {[%emt 0:01:19]} 27. Rb4 {[%emt 0:03:04]} Na4 {[%emt 0:00:44]} 28. c4 {[%emt 0:02:53]} Qd7 {[%emt 0:04:10]} 29. Qc2 {[%emt 0:03:21]} Bf8 {[%emt 0:00:58]} 30. Rb3 {[%emt 0:01:37]} bxc4 {[%emt 0:00:44]} 31. dxc4 {[%emt 0:01:09]} Rxc4 {[%emt 0:00:21]} 32. Qd3 {[%emt 0:00:55]} Qxd3 {[%emt 0:01:25]} 33. Rxd3 {[%emt 0:00:15]} Rxc1+ {[%emt 0:00:33]} 34. Naxc1 {[%emt 0:00:27]} Bc6 {[%emt 0:00:41]} 35. Nb3 {[%emt 0:01:18]} Bb5 {[%emt 0:00:42]} 36. Rd2 {[%emt 0:00:30]} Bb4 {[%emt 0:28:44]} 37. Ra2 {[%emt 0:00:47]} Nc3 {[%emt 0:00:00]} 38. Nxc3 {[%emt 0:00:29]} Bxc3 {[%emt 0:00:00]} 39. Rc2 {[%emt 0:00:09]} Ba4 {[%emt 0:00:00]} 40. Ra2 {[%emt 0:02:30]} Bxb3 {[%emt 0:00:00]} 41. Rxa6 {[%emt 0:00:15]} Bd4 {[%emt 0:00:00]} 42. Rd6 {[%emt 0:00:56]} Be5 {[%emt 0:00:00]} 43. Rd3 {[%emt 0:00:34]} Rc1+ {[%emt 0:00:00]} 44. Kh2 {[%emt 0:00:06]} Rb1 {[%emt 0:00:00]} 45. Rd8+ {[%emt 0:00:06]} Kg7 {[%emt 0:00:00]} 46. Rd2 {[%emt 0:00:20]} Rb2 {[%emt 0:00:00]} 47. Rd3 {[%emt 0:00:18]} Bc4 {[%emt 0:00:00]} 48. Rd1 {[%emt 0:00:09]} Rxf2 {[%emt 0:00:00]} 49. Rc1 {[%emt 0:00:23]} Bd3 {[%emt 0:00:00]} 50. Re1 {[%emt 0:00:09]} Re2 {[%emt 0:00:00]} 51. Rg1 {[%emt 0:00:25]} Bxe4 {[%emt 0:00:00]} 52. h4 {[%emt 0:00:27]} Rxg2+ {[%emt 0:00:00]} 53. Rxg2 {[%emt 0:00:08]} Bxg2 {[%emt 0:00:00]} 54. Kxg2 {[%emt 0:00:01]} h5 {[%emt 0:00:00]} 55. Kf3 {[%emt 0:00:07]} f5 {[%emt 0:00:00]} 56. Kg2 {[%emt 0:00:40]} Kf6 {[%emt 0:00:00]} 57. Kf3 {[%emt 0:00:00]} g5 {[%emt 0:00:00]} 58. Kg2 {[%emt 0:00:00]} gxh4 {[%emt 0:00:00]} 59. gxh4 {[%emt 0:00:02]} f4 {[%emt 0:00:00]} 60. Kf3 {[%emt 0:00:21]} Kf5 {[%emt 0:00:00]} 61. Kf2 {[%emt 0:00:39]} Kg4 {[%emt 0:00:00]} 62. Kg2 {[%emt 0:00:20]} Bd4 {[%emt 0:00:00]} 63. Kh2 {[%emt 0:00:22]} Kxh4 {[%emt 0:00:00]} 64. Kg2 {[%emt 0:00:04]} Kg4 {[%emt 0:00:00]} 65. Kf1 {[%emt 0:00:20]} Kf3 {[%emt 0:00:00]} 66. Ke1 {[%emt 0:00:23]} Ke3 {[%emt 0:00:00]} 67. Kf1 {[%emt 0:00:09]} f3 {[%emt 0:00:00]} 68. Ke1 {[%emt 0:00:25]} f2+ {[%emt 0:00:00]} 69. Kf1 {[%emt 0:00:01]} h4 {[%emt 0:00:00]} 70. Kg2 {[%emt 0:00:37]} Ke2 {[%emt 0:00:00]} 71. Kh3 {[%emt 0:00:14]} f1=Q+ {[%emt 0:00:00]} 72. Kxh4 {[%emt 0:00:05]} Qg2 {[%emt 0:00:00]} 73. Kh5 {[%emt 0:00:08]} Bf6 {[%emt 0:00:00]} 74. Kh6 {[%emt 0:00:09]} Qg5+ {[%emt 0:00:00]} 75. Kh7 {[%emt 0:00:46]} Qg7# {[%emt 0:00:00]} 0-1

[Event "Catalan Youth Championship 2024"]
[Site "Cambrils"]
[Date "2024.03.25"]
[Round "5.2"]
[White "Ortega Campallo, David"]
[Black "Guiu Ruiz, Lluc"]
[Result "1/2-1/2"]
[ECO "B77"]
[WhiteElo "1522"]
[BlackElo "1613"]
[Annotator "NA RC"]
[PlyCount "59"]
[EventDate "2024.03.13"]
[EventType "swiss"]
[EventCountry "ESP"]
[SourceTitle "playchess.com"]
[Source "ChessBase"]
[SourceQuality "1"]
[TimeControl "5400+30"]

1. e4 {[%emt 0:00:02]} c5 {[%emt 0:00:06]} 2. Nf3 {[%emt 0:00:07]} d6 {[%emt 0:00:26]} 3. d4 {[%emt 0:00:38]} cxd4 {[%emt 0:00:13]} 4. Nxd4 {[%emt 0:00:25]} Nf6 {[%emt 0:00:40]} 5. Nc3 {[%emt 0:00:54]} g6 {[%emt 0:00:38]} 6. Be3 {[%emt 0:01:07]} Bg7 {[%emt 0:00:57]} 7. Bc4 {[%emt 0:02:15]} O-O {[%emt 0:01:41]} 8. Qd2 {[%emt 0:01:55]} Nc6 {[%emt 0:04:59]} 9. f3 {[%emt 0:01:40]} Nxd4 {[%emt 0:03:55]} 10. Bxd4 {[%emt 0:00:48]} Be6 {[%emt 0:00:55]} 11. Bxe6 {[%emt 0:03:29]} fxe6 {[%emt 0:00:10]} 12. O-O-O {[%emt 1:23:10]} Qa5 {[%emt 1:21:50]} 13. Kb1 {[%emt 0:00:00]} Rac8 {[%emt 0:00:00]} 14. Ne2 {[%emt 0:00:00]} Qxd2 {[%emt 0:00:00]} 15. Rxd2 {[%emt 0:01:30]} a6 {[%emt 0:00:00]} 16. Ng3 {[%emt 0:00:00]} Nd7 {[%emt 0:00:00]} 17. Bxg7 {[%emt 0:00:00]} Kxg7 {[%emt 0:00:00]} 18. h4 {[%emt 0:00:00]} Ne5 {[%emt 0:00:00]} 19. h5 {[%emt 0:02:00]} Nc4 {[%emt 0:00:00]} 20. Rd3 {[%emt 0:00:00]} Ne5 {[%emt 0:00:00]} 21. Rb3 {[%emt 0:00:00]} b5 {[%emt 0:00:00]} 22. Ne2 {[%emt 0:00:00]} Nc4 {[%emt 0:00:00]} 23. Kc1 {[%emt 0:00:00]} Rc7 {[%emt 0:00:00]} 24. Nd4 {[%emt 0:00:00]} Kf6 {[%emt 0:00:00]} 25. g4 {[%emt 0:00:00]} Ke5 {[%emt 0:00:00]} 26. Ne2 {[%emt 0:00:00]} d5 {[%emt 0:00:00]} 27. hxg6 {[%emt 0:00:00]} hxg6 {[%emt 0:00:00]} 28. Ng3 {[%emt 0:04:30]} d4 {[%emt 0:00:00]} 29. Rd3 {[%emt 0:00:00]} Ne3 {[%emt 0:00:00]} 30. c3 {[%emt 0:00:00]} 1/2-1/2

[Event "Catalan Youth Championship 2024"]
[Site "Cambrils"]
[Date "2024.03.25"]
[Round "5.3"]
[White "Escobar Pavlik, Luka"]
[Black "Rosique Cano, Xavier"]
[Result "1-0"]
[ECO "D50"]
[WhiteElo "1612"]
[BlackElo "1433"]
[Annotator "NA RC"]
[PlyCount "105"]
[EventDate "2024.03.13"]
[EventType "swiss"]
[EventCountry "ESP"]
[SourceTitle "playchess.com"]
[Source "ChessBase"]
[SourceQuality "1"]
[TimeControl "5400+30"]

1. d4 {[%emt 0:00:03]} d5 {[%emt 0:00:08]} 2. c4 {[%emt 0:00:12]} e6 {[%emt 0:00:28]} 3. Nc3 {[%emt 0:00:56]} Nf6 {[%emt 0:00:28]} 4. Bg5 {[%emt 0:01:40]} Bb4 {[%emt 0:00:12]} 5. e3 {[%emt 0:02:08]} Bxc3+ {[%emt 0:00:20]} 6. bxc3 {[%emt 0:00:11]} Nc6 {[%emt 0:02:09]} 7. Nf3 {[%emt 0:04:46]} h6 {[%emt 0:01:41]} 8. Bxf6 {[%emt 0:08:03]} gxf6 {[%emt 0:00:37]} 9. c5 {[%emt 0:09:48]} e5 {[%emt 0:01:57]} 10. Bb5 {[%emt 1:07:43]} e4 {[%emt 0:00:30]} 11. Nd2 {[%emt 0:00:00]} Bd7 {[%emt 0:00:40]} 12. c4 {[%emt 0:00:00]} Be6 {[%emt 0:02:33]} 13. Qa4 {[%emt 0:00:00]} Qd7 {[%emt 0:01:21]} 14. Rd1 {[%emt 0:00:00]} a6 {[%emt 0:00:15]} 15. Nxe4 {[%emt 0:00:00]} dxe4 {[%emt 0:01:39]} 16. d5 {[%emt 0:00:00]} axb5 {[%emt 0:00:43]} 17. Qxa8+ {[%emt 0:00:00]} Qc8 {[%emt 0:00:29]} 18. Qxc8+ {[%emt 0:00:00]} Bxc8 {[%emt 0:01:00]} 19. dxc6 {[%emt 0:00:00]} bxc6 {[%emt 0:00:12]} 20. cxb5 {[%emt 0:00:00]} cxb5 {[%emt 0:00:23]} 21. Kd2 {[%emt 0:00:00]} Ke7 {[%emt 0:00:15]} 22. Kc3 {[%emt 0:00:00]} Be6 {[%emt 0:01:37]} 23. Rd4 {[%emt 0:00:00]} f5 {[%emt 0:00:35]} 24. Rb4 {[%emt 0:00:00]} c6 {[%emt 0:00:33]} 25. a4 {[%emt 0:00:00]} bxa4 {[%emt 0:00:48]} 26. Rxa4 {[%emt 0:00:00]} Rg8 {[%emt 0:00:14]} 27. g3 {[%emt 0:00:00]} Rd8 {[%emt 0:00:51]} 28. Rd4 {[%emt 0:00:00]} Ra8 {[%emt 0:00:37]} 29. Rd6 {[%emt 0:00:00]} Ra3+ {[%emt 0:01:07]} 30. Kb4 {[%emt 0:00:00]} Rb3+ {[%emt 0:01:31]} 31. Ka4 {[%emt 0:00:00]} Rb2 {[%emt 0:00:50]} 32. Ka3 {[%emt 0:00:00]} Ra2+ {[%emt 0:00:39]} 33. Kb4 {[%emt 0:00:00]} Rb2+ {[%emt 0:00:52]} 34. Kc3 {[%emt 0:00:00]} Rxf2 {[%emt 0:00:33]} 35. Rxc6 {[%emt 0:00:00]} Rf3 {[%emt 0:00:49]} 36. Re1 {[%emt 0:00:00]} Rf2 {[%emt 0:00:17]} 37. Rb6 {[%emt 0:00:00]} Kd8 {[%emt 0:01:28]} 38. Rb2 {[%emt 0:00:00]} Rf3 {[%emt 0:00:29]} 39. Kd4 {[%emt 0:00:00]} f6 {[%emt 0:00:21]} 40. c6 {[%emt 0:00:00]} Kc7 {[%emt 0:02:31]} 41. Kc5 {[%emt 0:00:00]} Bc8 {[%emt 0:00:37]} 42. Ra2 {[%emt 0:00:00]} Kd8 {[%emt 0:02:12]} 43. Kd6 {[%emt 0:00:00]} h5 {[%emt 0:02:32]} 44. Ra8 {[%emt 0:00:00]} h4 {[%emt 0:00:35]} 45. c7+ {[%emt 0:00:00]} Ke8 {[%emt 0:00:22]} 46. Rxc8+ {[%emt 0:00:00]} Kf7 {[%emt 0:00:19]} 47. Ra8 {[%emt 0:00:00]} hxg3 {[%emt 0:00:36]} 48. hxg3 {[%emt 0:00:00]} Rxg3 {[%emt 0:00:06]} 49. c8=Q {[%emt 0:19:30]} Rg7 {[%emt 0:01:09]} 50. Qxf5 {[%emt 0:00:00]} Rg6 {[%emt 0:00:25]} 51. Ra7+ {[%emt 0:00:00]} Kg8 {[%emt 0:00:13]} 52. Qxg6+ {[%emt 0:00:00]} Kh8 {[%emt 0:00:15]} 53. Rh1# {[%emt 0:00:00]} 1-0

[Event "Catalan Youth Championship 2024"]
[Site "Cambrils"]
[Date "2024.03.25"]
[Round "5.4"]
[White "Serradell Munoz, Silvia"]
[Black "Mumbru Borges, Marc"]
[Result "1/2-1/2"]
[ECO "B01"]
[WhiteElo "1564"]
[BlackElo "1458"]
[Annotator "NA RC"]
[PlyCount "115"]
[EventDate "2024.03.13"]
[EventType "swiss"]
[EventCountry "ESP"]
[SourceTitle "playchess.com"]
[Source "ChessBase"]
[SourceQuality "1"]
[TimeControl "5400+30"]

1. e4 {[%emt 0:00:07]} d5 {[%emt 0:00:20]} 2. exd5 {[%emt 0:00:15]} Qxd5 {[%emt 0:00:09]} 3. Nc3 {[%emt 0:00:29]} Qa5 {[%emt 0:00:19]} 4. d4 {[%emt 0:00:30]} Nf6 {[%emt 0:00:11]} 5. Nf3 {[%emt 0:00:45]} Bf5 {[%emt 0:00:23]} 6. Bc4 {[%emt 0:00:42]} c6 {[%emt 0:00:28]} 7. O-O {[%emt 0:00:31]} Nbd7 {[%emt 0:00:26]} 8. Bd2 {[%emt 0:00:48]} e6 {[%emt 0:00:41]} 9. Re1 {[%emt 0:01:03]} Qc7 {[%emt 0:00:14]} 10. h3 {[%emt 1:30:20]} Bd6 {[%emt 0:01:38]} 11. Qe2 {[%emt 0:00:00]} O-O {[%emt 0:00:58]} 12. a3 {[%emt 0:00:00]} a5 {[%emt 0:00:52]} 13. a4 {[%emt 0:00:00]} Rfe8 {[%emt 0:00:38]} 14. Bd3 {[%emt 0:00:00]} Bg6 {[%emt 0:02:36]} 15. Bxg6 {[%emt 0:00:00]} hxg6 {[%emt 0:00:17]} 16. Ne5 {[%emt 0:00:00]} Nd5 {[%emt 0:02:14]} 17. Nxd5 {[%emt 0:00:00]} exd5 {[%emt 0:00:44]} 18. Qf3 {[%emt 0:00:00]} Nxe5 {[%emt 0:01:50]} 19. dxe5 {[%emt 0:00:00]} Bxe5 {[%emt 0:00:14]} 20. c3 {[%emt 0:00:00]} Re7 {[%emt 0:02:00]} 21. Kh1 {[%emt 0:00:00]} Rae8 {[%emt 0:01:02]} 22. Be3 {[%emt 0:00:00]} Qd6 {[%emt 0:03:59]} 23. Rad1 {[%emt 0:00:00]} Bf4 {[%emt 0:02:35]} 24. Rd3 {[%emt 0:00:00]} Qc7 {[%emt 0:02:39]} 25. g3 {[%emt 0:00:00]} Bd6 {[%emt 0:01:25]} 26. Red1 {[%emt 0:00:00]} Re6 {[%emt 0:01:59]} 27. h4 {[%emt 0:00:00]} Rf6 {[%emt 0:01:31]} 28. Qg2 {[%emt 0:00:00]} Qe7 {[%emt 0:03:05]} 29. Bg5 {[%emt 0:09:30]} Qd8 {[%emt 0:01:46]} 30. Bxf6 {[%emt 0:00:00]} Qxf6 {[%emt 0:00:45]} 31. Qf3 {[%emt 0:00:00]} Re6 {[%emt 0:01:16]} 32. Qxf6 {[%emt 0:00:00]} Rxf6 {[%emt 0:00:17]} 33. Kg2 {[%emt 0:00:00]} Bc5 {[%emt 0:00:44]} 34. f4 {[%emt 0:00:00]} Re6 {[%emt 0:00:51]} 35. Kf3 {[%emt 0:00:00]} f5 {[%emt 0:01:20]} 36. Rh1 {[%emt 0:00:00]} Re7 {[%emt 0:04:32]} 37. h5 {[%emt 0:04:00]} Re6 {[%emt 0:00:54]} 38. hxg6 {[%emt 0:00:00]} Rxg6 {[%emt 0:00:40]} 39. Rh5 {[%emt 0:00:00]} Rf6 {[%emt 0:02:06]} 40. Rd2 {[%emt 0:00:00]} g6 {[%emt 0:01:52]} 41. Rh1 {[%emt 0:00:00]} Re6 {[%emt 0:03:10]} 42. Re2 {[%emt 0:00:00]} Re4 {[%emt 0:00:43]} 43. Rhe1 {[%emt 0:00:00]} Kf7 {[%emt 0:00:52]} 44. g4 {[%emt 0:00:00]} Bd6 {[%emt 0:00:59]} 45. Rxe4 {[%emt 0:00:00]} fxe4+ {[%emt 0:01:07]} 46. Ke3 {[%emt 0:00:00]} Bc5+ {[%emt 0:00:42]} 47. Ke2 {[%emt 0:00:00]} Kf6 {[%emt 0:02:04]} 48. Rh1 {[%emt 0:00:00]} Kg7 {[%emt 0:01:11]} 49. Rh3 {[%emt 0:00:00]} Bd6 {[%emt 0:02:38]} 50. f5 {[%emt 0:00:00]} Bf4 {[%emt 0:00:56]} 51. fxg6 {[%emt 0:00:00]} Kxg6 {[%emt 0:00:57]} 52. Rh5 {[%emt 0:07:30]} Kg7 {[%emt 0:01:35]} 53. Rf5 {[%emt 0:00:00]} Bb8 {[%emt 0:00:52]} 54. Rg5+ {[%emt 0:00:00]} Kf7 {[%emt 0:01:03]} 55. Rf5+ {[%emt 0:00:00]} Kg7 {[%emt 0:00:12]} 56. Rg5+ {[%emt 0:00:00]} Kf7 {[%emt 0:00:20]} 57. Rh5 {[%emt 0:00:00]} Kg7 {[%emt 0:00:27]} 58. Rg5+ {[%emt 0:00:00]} 1/2-1/2

[Event "Catalan Youth Championship 2024"]
[Site "Cambrils"]
[Date "2024.03.25"]
[Round "5.5"]
[White "Tallada Serret, Gerard"]
[Black "Hijarrubia Alvarez-Cuevas, Gonzalo"]
[Result "1/2-1/2"]
[ECO "B22"]
[WhiteElo "2085"]
[BlackElo "1827"]
[Annotator "NA RC"]
[PlyCount "71"]
[EventDate "2024.03.13"]
[EventType "swiss"]
[EventCountry "ESP"]
[SourceTitle "playchess.com"]
[Source "ChessBase"]
[SourceQuality "1"]
[TimeControl "5400+30"]

1. e4 {[%emt 0:00:06]} c5 {[%emt 0:00:04]} 2. Nf3 {[%emt 0:00:04]} a6 {[%emt 0:00:04]} 3. c3 {[%emt 0:00:24]} d5 {[%emt 0:00:06]} 4. exd5 {[%emt 0:00:13]} Qxd5 {[%emt 0:00:07]} 5. d4 {[%emt 0:00:05]} e6 {[%emt 0:00:19]} 6. Be2 {[%emt 0:00:25]} Nf6 {[%emt 0:00:08]} 7. O-O {[%emt 0:03:44]} Be7 {[%emt 0:00:45]} 8. h3 {[%emt 0:00:33]} Nc6 {[%emt 0:04:41]} 9. Be3 {[%emt 0:00:15]} cxd4 {[%emt 0:02:12]} 10. cxd4 {[%emt 0:00:49]} O-O {[%emt 0:00:36]} 11. Nc3 {[%emt 0:00:16]} Qd6 {[%emt 1:26:58]} 12. Qd2 {[%emt 1:29:36] B22: Sicilian: 2 c3.} Rd8 {[%emt 0:00:00]} 13. Rac1 {[%emt 0:00:30]} b5 {[%emt 0:01:00]} 14. Bf4 {[%emt 0:00:00]} Qd7 {[%emt 0:00:00]} 15. Rfd1 {[%emt 0:01:00]} Bb7 {[%emt 0:00:00]} 16. Qc2 {[%emt 0:00:00]} Rac8 {[%emt 0:00:00]} 17. Qb1 {[%emt 0:00:00]} Qe8 {[%emt 0:00:00]} 18. Bd3 {[%emt 0:00:00]} Nb4 {[%emt 0:00:00]} 19. Be2 {[%emt 0:00:00]} h6 {[%emt 0:00:00]} 20. Ne5 {[%emt 0:02:30]} Nbd5 {[%emt 0:00:00]} 21. Bg3 {[%emt 0:00:00]} Nxc3 {[%emt 0:00:00]} 22. bxc3 {[%emt 0:00:00]} Ba3 {[%emt 0:00:00]} 23. Rc2 {[%emt 0:00:00]} Be4 {[%emt 0:00:00]} 24. Bd3 {[%emt 0:00:00]} Bxd3 {[%emt 0:00:00]} 25. Rxd3 {[%emt 0:00:00]} Bd6 {[%emt 0:00:00]} 26. Rf3 {[%emt 0:00:00]} Rc7 {[%emt 0:00:00]} 27. Bh4 {[%emt 0:03:30]} Be7 {[%emt 0:00:00]} 28. Qc1 {[%emt 0:00:00]} Nd7 {[%emt 0:00:00]} 29. Bxe7 {[%emt 0:00:00]} Nxe5 {[%emt 0:08:00]} 30. dxe5 {[%emt 0:00:00]} Qxe7 $17 {[%emt 0:00:00]} 31. Rg3 {[%emt 0:00:00]} Kh8 {[%emt 0:00:00]} 32. Kh2 {[%emt 0:00:00]} Rd5 {[%emt 0:00:00]} 33. Qf4 {[%emt 0:00:00]} Rc4 {[%emt 0:00:00]} 34. Qe3 {[%emt 0:00:00]} Qc5 {[%emt 0:00:00]} 35. Qf3 {[%emt 0:00:00]} Qc7 {[%emt 0:00:00]} 36. Re2 {[%emt 0:04:30]} 1/2-1/2

[Event "Catalan Youth Championship 2024"]
[Site "Cambrils"]
[Date "2024.03.25"]
[Round "5.6"]
[White "Mulet Polo, Pau"]
[Black "Bru Montoya, Pau"]
[Result "0-1"]
[ECO "A59"]
[WhiteElo "1768"]
[BlackElo "1850"]
[Annotator "NA RC"]
[PlyCount "72"]
[EventDate "2024.03.13"]
[EventType "swiss"]
[EventCountry "ESP"]
[SourceTitle "playchess.com"]
[Source "ChessBase"]
[SourceQuality "1"]
[TimeControl "5400+30"]

1. d4 {[%emt 1:31:00]} Nf6 {[%emt 1:31:00]} 2. c4 {[%emt 0:00:30]} c5 {[%emt 0:00:30]} 3. d5 {[%emt 0:00:30]} b5 {[%emt 0:00:30]} 4. cxb5 {[%emt 0:00:30]} a6 {[%emt 0:00:30]} 5. bxa6 {[%emt 0:00:30]} g6 {[%emt 0:00:30]} 6. Nc3 {[%emt 0:00:30]} Bxa6 {[%emt 0:00:30]} 7. e4 {[%emt 0:00:30]} Bxf1 {[%emt 0:00:30]} 8. Kxf1 {[%emt 0:00:30]} d6 {[%emt 0:00:30]} 9. g3 {[%emt 0:00:30]} Bg7 {[%emt 0:00:30]} 10. Kg2 {[%emt 0:00:30]} O-O {[%emt 0:00:30]} 11. Nf3 {[%emt 0:00:30]} Nbd7 {[%emt 0:00:30]} 12. a4 {[%emt 0:00:30]} Ng4 {[%emt 0:00:30]} 13. Nb5 {[%emt 0:00:30]} Nge5 {[%emt 0:00:30]} 14. Nxe5 {[%emt 0:00:30]} Nxe5 {[%emt 0:00:30]} 15. Qc2 {[%emt 0:00:30]} Qb6 {[%emt 0:00:30]} 16. Ra3 {[%emt 0:00:30]} Rfc8 {[%emt 0:00:30]} 17. Bd2 {[%emt 0:00:30]} c4 {[%emt 0:00:30]} 18. Be3 {[%emt 0:00:30]} Qa5 {[%emt 0:00:30]} 19. Bd4 {[%emt 0:00:30]} Nd3 {[%emt 0:00:30]} 20. Bxg7 {[%emt 0:00:30]} Kxg7 {[%emt 0:00:30]} 21. Qc3+ {[%emt 0:00:30]} Qxc3 {[%emt 0:00:30]} 22. bxc3 {[%emt 0:00:30]} Nc5 {[%emt 0:00:30]} 23. Kf3 {[%emt 0:00:30]} Rxa4 {[%emt 0:00:30]} 24. Rxa4 {[%emt 0:00:30]} Nxa4 {[%emt 0:00:30]} 25. Ra1 {[%emt 0:00:30]} Nc5 {[%emt 0:00:30]} 26. Ra7 {[%emt 0:00:30]} Kf6 {[%emt 0:00:30]} 27. Ke3 {[%emt 0:00:30]} Rb8 {[%emt 0:00:30]} 28. Nd4 {[%emt 0:00:30]} Rb1 {[%emt 0:00:30]} 29. Ra2 {[%emt 0:00:30]} Re1+ {[%emt 0:00:30]} 30. Re2 {[%emt 0:00:30]} Rd1 {[%emt 0:00:30]} 31. Rd2 {[%emt 0:00:30]} Rxd2 {[%emt 0:00:30]} 32. Kxd2 {[%emt 0:00:30]} Nxe4+ {[%emt 0:00:30]} 33. Kc2 {[%emt 0:00:30]} Nxf2 {[%emt 0:00:30]} 34. Nc6 {[%emt 0:00:30]} Ng4 {[%emt 0:00:30]} 35. h3 {[%emt 0:00:30]} Ne3+ {[%emt 0:00:30]} 36. Kd2 {[%emt 0:00:30]} Nxd5 {[%emt 0:00:30]} 0-1

[Event "Catalan Youth Championship 2024"]
[Site "Cambrils"]
[Date "2024.03.25"]
[Round "5.7"]
[White "Torres Herrera, Guillem"]
[Black "Presas Gharbi, Rayan"]
[Result "1/2-1/2"]
[ECO "A88"]
[WhiteElo "1780"]
[BlackElo "1705"]
[Annotator "NA RC"]
[PlyCount "51"]
[EventDate "2024.03.13"]
[EventType "swiss"]
[EventCountry "ESP"]
[SourceTitle "playchess.com"]
[Source "ChessBase"]
[SourceQuality "1"]
[TimeControl "5400+30"]

1. d4 {[%emt 0:00:06]} f5 {[%emt 0:00:05]} 2. c4 {[%emt 0:00:31]} Nf6 {[%emt 0:00:06]} 3. Nc3 {[%emt 0:00:54]} g6 {[%emt 0:00:03]} 4. Nf3 {[%emt 0:01:21]} Bg7 {[%emt 0:00:07]} 5. g3 {[%emt 0:02:11]} O-O {[%emt 1:32:39]} 6. Bg2 {[%emt 0:01:15]} d6 {[%emt 0:00:00]} 7. O-O {[%emt 0:00:35]} c6 {[%emt 0:00:00]} 8. b3 {[%emt 0:06:31]} Na6 {[%emt 0:00:00]} 9. Bb2 {[%emt 0:02:25]} Qc7 {[%emt 0:00:00]} 10. e3 {[%emt 0:04:13]} e5 {[%emt 0:00:00]} 11. d5 {[%emt 0:05:09]} Nc5 {[%emt 0:00:00]} 12. b4 {[%emt 0:18:36]} Nce4 {[%emt 0:00:00]} 13. Nxe4 {[%emt 0:04:17]} Nxe4 {[%emt 0:00:00]} 14. Nd2 {[%emt 0:00:42]} cxd5 {[%emt 0:00:00]} 15. cxd5 {[%emt 0:00:45]} Nxd2 {[%emt 0:00:00]} 16. Qxd2 {[%emt 0:00:06]} b6 {[%emt 0:00:00]} 17. Rac1 {[%emt 0:09:11]} Qd7 {[%emt 0:00:00]} 18. e4 {[%emt 0:01:05]} fxe4 {[%emt 0:00:00]} 19. Bxe4 {[%emt 0:00:15]} Ba6 {[%emt 0:00:00]} 20. Rfe1 {[%emt 0:01:48]} Rac8 {[%emt 0:07:30]} 21. a3 {[%emt 0:01:45]} Qf7 {[%emt 0:00:00]} 22. a4 {[%emt 0:04:21]} Bh6 {[%emt 0:00:00]} 23. Qxh6 {[%emt 0:07:53]} Qxf2+ {[%emt 0:00:00]} 24. Kh1 {[%emt 0:00:05]} Qxb2 {[%emt 0:00:00]} 25. Bxg6 {[%emt 0:03:49]} hxg6 {[%emt 0:00:00]} 26. Qxg6+ {[%emt 0:00:12]} 1/2-1/2

[Event "Catalan Youth Championship 2024"]
[Site "Cambrils"]
[Date "2024.03.25"]
[Round "5.8"]
[White "Monclus Janssens, Jack"]
[Black "Badia Berthelot, Luca"]
[Result "1-0"]
[ECO "C56"]
[WhiteElo "1707"]
[BlackElo "1672"]
[Annotator "NA RC"]
[PlyCount "77"]
[EventDate "2024.03.13"]
[EventType "swiss"]
[EventCountry "ESP"]
[SourceTitle "playchess.com"]
[Source "ChessBase"]
[SourceQuality "1"]
[TimeControl "5400+30"]

1. e4 {[%emt 0:00:14]} e5 {[%emt 0:00:20]} 2. Nf3 {[%emt 0:00:21]} Nc6 {[%emt 0:00:23]} 3. d4 {[%emt 0:00:54]} exd4 {[%emt 0:00:38]} 4. Bc4 {[%emt 0:00:16]} Nf6 {[%emt 0:00:34]} 5. e5 {[%emt 0:00:16]} d5 {[%emt 0:00:27]} 6. Bb5 {[%emt 1:31:29]} Ne4 {[%emt 0:00:29]} 7. Nxd4 {[%emt 0:00:00]} Bc5 {[%emt 0:00:45]} 8. Be3 {[%emt 0:00:00]} O-O {[%emt 0:00:42]} 9. Nxc6 {[%emt 0:00:00]} bxc6 {[%emt 0:00:14]} 10. Bxc5 {[%emt 0:00:00]} Nxc5 {[%emt 0:00:07]} 11. Bxc6 {[%emt 0:00:00]} Rb8 {[%emt 0:00:25]} 12. O-O {[%emt 0:00:00]} Ba6 {[%emt 0:04:10]} 13. Re1 {[%emt 0:00:00]} Rxb2 {[%emt 0:00:27]} 14. Bxd5 {[%emt 0:00:00]} Qe7 {[%emt 0:03:21]} 15. Bb3 {[%emt 0:00:00]} Qh4 {[%emt 0:09:29]} 16. Nc3 {[%emt 0:00:00]} Rd8 {[%emt 0:13:05]} 17. Qc1 {[%emt 0:00:00]} Nd3 {[%emt 0:00:34]} 18. Qe3 {[%emt 0:00:00]} Nxe1 {[%emt 0:02:22]} 19. Rxe1 {[%emt 0:00:00]} Bc4 {[%emt 0:13:44]} 20. Qc1 {[%emt 0:00:00]} Rxb3 {[%emt 0:08:40]} 21. axb3 {[%emt 0:00:00]} Ba6 {[%emt 0:02:29]} 22. h3 {[%emt 0:00:00]} h6 {[%emt 0:02:23]} 23. Qe3 {[%emt 0:00:00]} Qb4 {[%emt 0:01:07]} 24. Ra1 {[%emt 0:00:00]} Bd3 {[%emt 0:01:35]} 25. Qd2 {[%emt 0:00:00]} Rd7 {[%emt 0:04:34]} 26. cxd3 {[%emt 0:00:00]} Qxb3 {[%emt 0:00:19]} 27. Rxa7 {[%emt 0:00:00]} Qb6 {[%emt 0:00:34]} 28. Ra4 {[%emt 0:00:00]} c5 {[%emt 0:00:54]} 29. Ra8+ {[%emt 0:00:00]} Kh7 {[%emt 0:00:18]} 30. Qf4 {[%emt 0:00:00]} Qg6 {[%emt 0:02:18]} 31. Ne4 {[%emt 0:00:00]} Rd4 {[%emt 0:03:29]} 32. Qe3 {[%emt 0:00:00]} Qc6 {[%emt 0:01:08]} 33. Ra7 {[%emt 0:00:00]} Qd5 {[%emt 0:01:11]} 34. Qf4 {[%emt 0:00:00]} Kg8 {[%emt 0:03:19]} 35. Qg3 {[%emt 0:00:00]} Kh8 {[%emt 0:02:02]} 36. Rc7 {[%emt 0:00:00]} Rxd3 {[%emt 0:01:00]} 37. Rc8+ {[%emt 0:00:00]} Kh7 {[%emt 0:00:15]} 38. Nf6+ {[%emt 0:00:00]} gxf6 {[%emt 0:00:22]} 39. Qg8# {[%emt 0:16:30]} 1-0